[Event "*** Qualifier 1: Titled Tuesday 3|2 Blitz"]
[Site "Chess.com"]
[Date "2017.04.04"]
[Round "10"]
[White "StoreySniper"]
[Black "Marcus_Harvey"]
[Result "0-1"]
[WhiteElo "2240"]
[BlackElo "2461"]
[TimeControl "180+2"]
[EndTime "15:21:19 PDT"]
[Termination "Marcus_Harvey won by resignation"]

1. c4 {[%clk 0:02:57.7]} 1... e6 {[%clk 0:02:52.9]} 2. Nf3 {[%clk 0:02:56.6]}
2... f5 {[%clk 0:02:52.1]} 3. d4 {[%clk 0:02:55]} 3... Nf6 {[%clk 0:02:53.1]} 4.
Nc3 {[%clk 0:02:54.9]} 4... Be7 {[%clk 0:02:54]} 5. g3 {[%clk 0:02:54.5]} 5...
O-O {[%clk 0:02:55.1]} 6. Bg2 {[%clk 0:02:55.9]} 6... d6 {[%clk 0:02:56.7]} 7.
O-O {[%clk 0:02:55]} 7... a5 {[%clk 0:02:58.1]} 8. Re1 {[%clk 0:02:55.8]} 8...
Ne4 {[%clk 0:02:55.5]} 9. Nxe4 {[%clk 0:02:50.4]} 9... fxe4 {[%clk 0:02:52.1]}
10. Nd2 {[%clk 0:02:50.9]} 10... d5 {[%clk 0:02:47.9]} 11. cxd5 {[%clk
0:02:43.7]} 11... exd5 {[%clk 0:02:48.3]} 12. f3 {[%clk 0:02:37.3]} 12... Nc6
{[%clk 0:02:38.1]} 13. e3 {[%clk 0:02:24.9]} 13... exf3 {[%clk 0:02:33]} 14.
Bxf3 {[%clk 0:02:20]} 14... Bf5 {[%clk 0:02:09.9]} 15. a3 {[%clk 0:02:05]} 15...
a4 {[%clk 0:02:04.7]} 16. Qe2 {[%clk 0:01:59.3]} 16... Na5 {[%clk 0:01:49.3]}
17. Qg2 {[%clk 0:01:32.8]} 17... c6 {[%clk 0:01:46.3]} 18. Bd1 {[%clk 0:01:20]}
18... b5 {[%clk 0:01:20.3]} 19. Rf1 {[%clk 0:01:20.6]} 19... Bg5 {[%clk
0:01:17.1]} 20. Nf3 {[%clk 0:01:11]} 20... Be4 {[%clk 0:01:05.5]} 21. Bc2 {[%clk
0:01:00.3]} 21... Nc4 {[%clk 0:00:52.1]} 22. Bxe4 {[%clk 0:00:57.7]} 22... dxe4
{[%clk 0:00:53]} 23. Nxg5 {[%clk 0:00:27.8]} 23... Rxf1+ {[%clk 0:00:53.4]} 24.
Qxf1 {[%clk 0:00:28.1]} 24... Qxg5 {[%clk 0:00:54.1]} 25. Qf4 {[%clk 0:00:29.1]}
25... Qh5 {[%clk 0:00:46.1]} 26. g4 {[%clk 0:00:28.1]} 26... Qh3 {[%clk
0:00:42.2]} 27. Qxe4 {[%clk 0:00:24.8]} 27... Rf8 {[%clk 0:00:31]} 28. Qg2
{[%clk 0:00:25.7]} 28... Qh4 {[%clk 0:00:30.7]} 29. Bd2 {[%clk 0:00:23]} 29...
Nxd2 {[%clk 0:00:30.8]} 30. Qxd2 {[%clk 0:00:24.1]} 30... Qxg4+ {[%clk
0:00:29.4]} 31. Qg2 {[%clk 0:00:25.5]} 31... Qxg2+ {[%clk 0:00:22]} 32. Kxg2
{[%clk 0:00:26.5]} 32... Rf6 {[%clk 0:00:23.2]} 33. Rc1 {[%clk 0:00:20.9]} 33...
Kf7 {[%clk 0:00:23.6]} 34. Rc5 {[%clk 0:00:21.8]} 34... Ke7 {[%clk 0:00:23.2]}
35. d5 {[%clk 0:00:17.9]} 35... Kd6 {[%clk 0:00:24.4]} 36. Rxc6+ {[%clk
0:00:18.4]} 36... Kxd5 {[%clk 0:00:25.9]} 37. Rc7 {[%clk 0:00:12.5]} 37... Ke4
{[%clk 0:00:17.6]} 38. Rxg7 {[%clk 0:00:12]} 38... Kxe3 {[%clk 0:00:19.1]} 39.
Rxh7 {[%clk 0:00:12.2]} 39... Rf2+ {[%clk 0:00:19.3]} 40. Kg3 {[%clk 0:00:10.4]}
40... Rxb2 {[%clk 0:00:20.9]} 41. h4 {[%clk 0:00:09.9]} 41... Kd4 {[%clk
0:00:22]} 42. Rb7 {[%clk 0:00:09.2]} 42... Kc4 {[%clk 0:00:22.7]} 43. h5 {[%clk
0:00:09]} 43... Rb3+ {[%clk 0:00:24.1]} 44. Kg4 {[%clk 0:00:09.7]} 44... Rxa3
{[%clk 0:00:25.6]} 45. Rc7+ {[%clk 0:00:10.2]} 45... Kb3 {[%clk 0:00:25.5]} 46.
h6 {[%clk 0:00:11.2]} 46... Ra1 {[%clk 0:00:26.4]} 47. Rc5 {[%clk 0:00:11]}
47... Rg1+ {[%clk 0:00:27.4]} 48. Kf5 {[%clk 0:00:07.6]} 48... b4 {[%clk
0:00:23.4]} 49. h7 {[%clk 0:00:03.7]} 49... Rh1 {[%clk 0:00:22.9]} 50. Kg6
{[%clk 0:00:04.3]} 50... Rxh7 {[%clk 0:00:23.2]} 51. Kxh7 {[%clk 0:00:05.6]}
51... a3 {[%clk 0:00:24.8]} 52. Rh5 {[%clk 0:00:06.6]} 52... a2 {[%clk
0:00:25.8]} 53. Rh3+ {[%clk 0:00:07.8]} 53... Ka4 {[%clk 0:00:26.8]} 54. Rh1
{[%clk 0:00:05.7]} 54... b3 {[%clk 0:00:28]} 55. Kg6 {[%clk 0:00:04.4]} 55... b2
{[%clk 0:00:28.8]} 56. Rh4+ {[%clk 0:00:04.8]} 56... Kb5 {[%clk 0:00:29.4]} 57.
Rh5+ {[%clk 0:00:05.8]} 57... Kc6 {[%clk 0:00:29.6]} 0-1

[Event "*** Qualifier 1: Titled Tuesday 3|2 Blitz"]
[Site "Chess.com"]
[Date "2017.04.04"]
[Round "10"]
[White "Tirantes"]
[Black "Grebeniuk-S"]
[Result "0-1"]
[WhiteElo "2189"]
[BlackElo "2389"]
[TimeControl "180+2"]
[EndTime "15:21:41 PDT"]
[Termination "Grebeniuk-S won by resignation"]

1. c4 {[%clk 0:03:02]} 1... Nf6 {[%clk 0:02:58.9]} 2. g3 {[%clk 0:03:00.4]} 2...
g6 {[%clk 0:02:59.2]} 3. Bg2 {[%clk 0:03:00.6]} 3... Bg7 {[%clk 0:03:00.4]} 4.
Nc3 {[%clk 0:03:01.3]} 4... O-O {[%clk 0:03:02.3]} 5. e4 {[%clk 0:03:01.7]} 5...
d6 {[%clk 0:03:03.5]} 6. Nge2 {[%clk 0:03:02]} 6... e5 {[%clk 0:02:59.5]} 7. d3
{[%clk 0:03:01.9]} 7... Nh5 {[%clk 0:02:56.1]} 8. O-O {[%clk 0:02:59.9]} 8... f5
{[%clk 0:02:56.4]} 9. exf5 {[%clk 0:02:52.5]} 9... gxf5 {[%clk 0:02:57.3]} 10.
f4 {[%clk 0:02:52.2]} 10... Nc6 {[%clk 0:02:46]} 11. Be3 {[%clk 0:02:52.4]}
11... Nf6 {[%clk 0:02:34.7]} 12. h3 {[%clk 0:02:50.6]} 12... Kh8 {[%clk
0:02:34.4]} 13. Qd2 {[%clk 0:02:50.9]} 13... Be6 {[%clk 0:02:32.6]} 14. Rae1
{[%clk 0:02:44.8]} 14... Qd7 {[%clk 0:02:32.5]} 15. Nd5 {[%clk 0:02:41.8]} 15...
Bxd5 {[%clk 0:02:20.3]} 16. cxd5 {[%clk 0:02:40.9]} 16... Ne7 {[%clk 0:02:22.2]}
17. Nc3 {[%clk 0:02:36.6]} 17... Ng6 {[%clk 0:02:17.1]} 18. Kh2 {[%clk
0:02:19.1]} 18... exf4 {[%clk 0:02:12.9]} 19. gxf4 {[%clk 0:02:19]} 19... Nh5
{[%clk 0:02:03.1]} 20. Bf3 {[%clk 0:02:15.3]} 20... Nhxf4 {[%clk 0:02:00.2]} 21.
d4 {[%clk 0:02:08.7]} 21... Bh6 {[%clk 0:01:56.4]} 22. Rg1 {[%clk 0:02:03.4]}
22... Rae8 {[%clk 0:01:31.9]} 23. Ref1 {[%clk 0:01:53.3]} 23... Qe7 {[%clk
0:01:27.1]} 24. Rxg6 {[%clk 0:01:47.3]} 24... Qxe3 {[%clk 0:01:21.7]} 25. Qxe3
{[%clk 0:01:47.7]} 25... Rxe3 {[%clk 0:01:21.3]} 26. Rxh6 {[%clk 0:01:48.4]}
26... Kg7 {[%clk 0:01:00.8]} 27. Rh4 {[%clk 0:01:44.2]} 27... Ng6 {[%clk
0:00:51.7]} 28. Rh5 {[%clk 0:01:44.2]} 28... Rd3 {[%clk 0:00:46.4]} 29. Rf2
{[%clk 0:01:35.6]} 29... Rxd4 {[%clk 0:00:38.5]} 30. Rg5 {[%clk 0:01:28.4]}
30... Kh6 {[%clk 0:00:34.1]} 31. Rfg2 {[%clk 0:01:18.6]} 31... Nf4 {[%clk
0:00:24.9]} 32. R2g3 {[%clk 0:01:13.1]} 32... Rd2+ {[%clk 0:00:25.7]} 33. Kh1
{[%clk 0:01:03.5]} 33... Re8 {[%clk 0:00:27]} 34. Rg1 {[%clk 0:00:52.1]} 34...
Re3 {[%clk 0:00:27]} 35. R5g3 {[%clk 0:00:32.1]} 35... Nd3 {[%clk 0:00:28.2]}
36. R1g2 {[%clk 0:00:21]} 36... Rxg2 {[%clk 0:00:20.8]} 37. Kxg2 {[%clk
0:00:20.5]} 37... f4 {[%clk 0:00:20.6]} 38. Nd1 {[%clk 0:00:11]} 38... Re5
{[%clk 0:00:14.2]} 39. Rg4 {[%clk 0:00:09]} 39... Ne1+ {[%clk 0:00:10.9]} 40.
Kf2 {[%clk 0:00:10.1]} 40... Nd3+ {[%clk 0:00:12.8]} 41. Kf1 {[%clk 0:00:10.1]}
41... Re1+ {[%clk 0:00:13.2]} 42. Kg2 {[%clk 0:00:11.2]} 42... Re5 {[%clk
0:00:11.1]} 43. Nf2 {[%clk 0:00:11.6]} 43... Ne1+ {[%clk 0:00:11.6]} 44. Kf1
{[%clk 0:00:11.1]} 44... Nxf3 {[%clk 0:00:13.5]} 45. Rxf4 {[%clk 0:00:11.5]}
45... Nd2+ {[%clk 0:00:12.9]} 46. Kg2 {[%clk 0:00:11.4]} 46... Re2 {[%clk
0:00:13.5]} 47. Kg1 {[%clk 0:00:10.8]} 47... Re1+ {[%clk 0:00:14.3]} 48. Kg2
{[%clk 0:00:11.1]} 48... Rb1 {[%clk 0:00:14.4]} 49. Ng4+ {[%clk 0:00:09.7]}
49... Kg5 {[%clk 0:00:15.4]} 50. Rf7 {[%clk 0:00:10.4]} 50... Rxb2 {[%clk
0:00:15.5]} 51. Rxc7 {[%clk 0:00:10.8]} 51... Ne4+ {[%clk 0:00:16.1]} 52. Kf3
{[%clk 0:00:11.2]} 52... Nd2+ {[%clk 0:00:17]} 53. Ke3 {[%clk 0:00:11.8]} 53...
h5 {[%clk 0:00:18.9]} 54. Nf2 {[%clk 0:00:10.1]} 54... Nf1+ {[%clk 0:00:20.3]}
55. Kf3 {[%clk 0:00:10.8]} 55... Nd2+ {[%clk 0:00:21.9]} 56. Ke3 {[%clk
0:00:11.6]} 56... Rxa2 {[%clk 0:00:22.9]} 57. Rxb7 {[%clk 0:00:11.4]} 57... a5
{[%clk 0:00:21.8]} 58. Rd7 {[%clk 0:00:11.4]} 58... a4 {[%clk 0:00:23]} 59. Rxd6
{[%clk 0:00:12.5]} 59... Nc4+ {[%clk 0:00:24.2]} 60. Kd4 {[%clk 0:00:10.5]}
60... Nxd6 {[%clk 0:00:25.1]} 61. Nd3 {[%clk 0:00:10.9]} 61... Rd2 {[%clk
0:00:26.1]} 62. Kc5 {[%clk 0:00:07.5]} 62... Rxd3 {[%clk 0:00:26.9]} 63. Kxd6
{[%clk 0:00:06.6]} 63... a3 {[%clk 0:00:28.8]} 0-1

[Event "*** Qualifier 1: Titled Tuesday 3|2 Blitz"]
[Site "Chess.com"]
[Date "2017.04.04"]
[Round "10"]
[White "ruvat"]
[Black "stepanosinovsky"]
[Result "0-1"]
[WhiteElo "2215"]
[BlackElo "2224"]
[TimeControl "180+2"]
[EndTime "15:21:46 PDT"]
[Termination "stepanosinovsky won on time"]

1. d4 {[%clk 0:03:02]} 1... Nf6 {[%clk 0:02:58.8]} 2. c4 {[%clk 0:03:01.5]} 2...
g6 {[%clk 0:03:00.7]} 3. Nf3 {[%clk 0:03:02.3]} 3... Bg7 {[%clk 0:03:02.6]} 4.
g3 {[%clk 0:03:03.6]} 4... O-O {[%clk 0:03:04.5]} 5. Bg2 {[%clk 0:03:04.9]} 5...
d6 {[%clk 0:03:06.4]} 6. O-O {[%clk 0:03:05.7]} 6... Nbd7 {[%clk 0:03:08.3]} 7.
Nc3 {[%clk 0:03:06.7]} 7... e5 {[%clk 0:03:10.2]} 8. e4 {[%clk 0:03:08.2]} 8...
c6 {[%clk 0:03:07.8]} 9. h3 {[%clk 0:03:08.1]} 9... exd4 {[%clk 0:03:08.1]} 10.
Nxd4 {[%clk 0:03:09.1]} 10... Re8 {[%clk 0:03:09.8]} 11. Be3 {[%clk 0:03:06.5]}
11... Nc5 {[%clk 0:03:08.5]} 12. Qc2 {[%clk 0:03:07.3]} 12... a5 {[%clk
0:03:08.7]} 13. Rad1 {[%clk 0:03:07.7]} 13... a4 {[%clk 0:03:06.5]} 14. Nxc6
{[%clk 0:03:07.9]} 14... Qb6 {[%clk 0:02:37.1]} 15. Nd4 {[%clk 0:02:56.5]} 15...
Qb4 {[%clk 0:02:37.2]} 16. Ndb5 {[%clk 0:02:47.4]} 16... Be6 {[%clk 0:02:00.3]}
17. Nc7 {[%clk 0:02:32.5]} 17... Bxc4 {[%clk 0:01:53]} 18. Nxe8 {[%clk
0:02:30.6]} 18... Nxe8 {[%clk 0:01:49.8]} 19. Rfe1 {[%clk 0:02:23.3]} 19... a3
{[%clk 0:01:50.1]} 20. e5 {[%clk 0:01:33.7]} 20... axb2 {[%clk 0:01:41.7]} 21.
Bxc5 {[%clk 0:01:16.9]} 21... Qxc5 {[%clk 0:01:29.5]} 22. Qxb2 {[%clk
0:01:17.4]} 22... Bxe5 {[%clk 0:01:29.4]} 23. Qxb7 {[%clk 0:01:06.8]} 23... Ra7
{[%clk 0:01:15.2]} 24. Qb8 {[%clk 0:01:07.5]} 24... Bxc3 {[%clk 0:00:42.4]} 25.
Rxe8+ {[%clk 0:01:01.2]} 25... Kg7 {[%clk 0:00:43.2]} 26. Rg8+ {[%clk
0:00:57.2]} 26... Kh6 {[%clk 0:00:33.6]} 27. Qf8+ {[%clk 0:00:57.2]} 27... Kh5
{[%clk 0:00:34.6]} 28. Bf3+ {[%clk 0:00:53.3]} 28... Kg5 {[%clk 0:00:32.8]} 29.
h4+ {[%clk 0:00:48]} 29... Kf5 {[%clk 0:00:32.8]} 30. Qh6 {[%clk 0:00:30.1]}
30... Ke6 {[%clk 0:00:20.8]} 31. Re8+ {[%clk 0:00:23.1]} 31... Kd7 {[%clk
0:00:20.8]} 32. Qf8 {[%clk 0:00:23.1]} 32... Bf6 {[%clk 0:00:20.6]} 33. Rb8
{[%clk 0:00:19.4]} 33... Be6 {[%clk 0:00:16.4]} 34. Qe8+ {[%clk 0:00:20.1]}
34... Kc7 {[%clk 0:00:17.6]} 35. Ra8 {[%clk 0:00:18.4]} 35... Rxa8 {[%clk
0:00:15]} 36. Qxa8 {[%clk 0:00:20.3]} 36... Bd4 {[%clk 0:00:16]} 37. Qb7+ {[%clk
0:00:20.8]} 37... Kd8 {[%clk 0:00:16.9]} 38. Qb8+ {[%clk 0:00:21.5]} 38... Ke7
{[%clk 0:00:17.6]} 39. Qb7+ {[%clk 0:00:22.7]} 39... Kf6 {[%clk 0:00:18.7]} 40.
Rf1 {[%clk 0:00:22.7]} 40... Bc4 {[%clk 0:00:19.5]} 41. Qe4 {[%clk 0:00:20.5]}
41... Bxf1 {[%clk 0:00:18.8]} 42. Kxf1 {[%clk 0:00:21.5]} 42... Qc1+ {[%clk
0:00:18.7]} 43. Kg2 {[%clk 0:00:22.1]} 43... Qb2 {[%clk 0:00:19.6]} 44. Qe2
{[%clk 0:00:20.6]} 44... Qc3 {[%clk 0:00:20.5]} 45. a4 {[%clk 0:00:19.6]} 45...
Qc5 {[%clk 0:00:20.2]} 46. Qd2 {[%clk 0:00:17.2]} 46... Kg7 {[%clk 0:00:20.2]}
47. h5 {[%clk 0:00:14.4]} 47... Bc3 {[%clk 0:00:17.1]} 48. h6+ {[%clk
0:00:11.3]} 48... Kf6 {[%clk 0:00:17.7]} 49. Qf4+ {[%clk 0:00:09.5]} 49... Ke7
{[%clk 0:00:18.7]} 50. Qe4+ {[%clk 0:00:07.8]} 50... Be5 {[%clk 0:00:18.7]} 51.
Be2 {[%clk 0:00:06.9]} 51... Qc3 {[%clk 0:00:13.7]} 52. Bc4 {[%clk 0:00:06.7]}
52... Qd2 {[%clk 0:00:13.2]} 53. Qb7+ {[%clk 0:00:05.5]} 53... Kd8 {[%clk
0:00:12.8]} 54. Qxf7 {[%clk 0:00:02.1]} 54... Bd4 {[%clk 0:00:13]} 0-1

[Event "*** Qualifier 1: Titled Tuesday 3|2 Blitz"]
[Site "Chess.com"]
[Date "2017.04.04"]
[Round "10"]
[White "AlexanderL"]
[Black "TenisMaster"]
[Result "1-0"]
[WhiteElo "2596"]
[BlackElo "2648"]
[TimeControl "180+2"]
[EndTime "15:22:07 PDT"]
[Termination "AlexanderL won by resignation"]

1. e4 {[%clk 0:03:02]} 1... e5 {[%clk 0:02:57.4]} 2. Nf3 {[%clk 0:03:02.4]} 2...
Nc6 {[%clk 0:02:57.7]} 3. Nc3 {[%clk 0:03:02.5]} 3... Nf6 {[%clk 0:02:52]} 4. a3
{[%clk 0:03:03.4]} 4... d6 {[%clk 0:02:34.6]} 5. d4 {[%clk 0:03:01.6]} 5... exd4
{[%clk 0:02:31.3]} 6. Nxd4 {[%clk 0:03:00.9]} 6... Bd7 {[%clk 0:02:33]} 7. Bc4
{[%clk 0:02:54.6]} 7... Be7 {[%clk 0:02:33.4]} 8. O-O {[%clk 0:02:48.9]} 8...
O-O {[%clk 0:02:34.4]} 9. Re1 {[%clk 0:02:44.1]} 9... Re8 {[%clk 0:02:30]} 10.
f3 {[%clk 0:02:42.5]} 10... h6 {[%clk 0:02:20.6]} 11. Be3 {[%clk 0:02:43.1]}
11... Bf8 {[%clk 0:02:09.1]} 12. Qd2 {[%clk 0:02:43.1]} 12... a6 {[%clk
0:02:09.4]} 13. Rad1 {[%clk 0:02:40.3]} 13... Nxd4 {[%clk 0:02:01.5]} 14. Bxd4
{[%clk 0:02:40.9]} 14... Bc6 {[%clk 0:02:01.3]} 15. Qf2 {[%clk 0:02:40.6]} 15...
Nd7 {[%clk 0:02:01.4]} 16. Nd5 {[%clk 0:02:39.3]} 16... Ne5 {[%clk 0:02:00.6]}
17. Ba2 {[%clk 0:02:40.5]} 17... Bxd5 {[%clk 0:02:00.3]} 18. Bxd5 {[%clk
0:02:41]} 18... c6 {[%clk 0:02:00.8]} 19. Ba2 {[%clk 0:02:42.1]} 19... Qc7
{[%clk 0:01:55.5]} 20. f4 {[%clk 0:02:42.6]} 20... Nd7 {[%clk 0:01:54.9]} 21.
Qf3 {[%clk 0:02:41.8]} 21... Be7 {[%clk 0:01:44.5]} 22. Qh5 {[%clk 0:02:30.7]}
22... Rf8 {[%clk 0:01:44.9]} 23. Re3 {[%clk 0:01:34.2]} 23... Nf6 {[%clk
0:01:30]} 24. Qf3 {[%clk 0:01:08.5]} 24... Rae8 {[%clk 0:01:29]} 25. Rde1 {[%clk
0:01:05.4]} 25... Nd7 {[%clk 0:01:17.4]} 26. e5 {[%clk 0:00:59.4]} 26... dxe5
{[%clk 0:01:17.3]} 27. fxe5 {[%clk 0:00:59.3]} 27... Bc5 {[%clk 0:01:12.9]} 28.
Qf4 {[%clk 0:00:49.7]} 28... Qb6 {[%clk 0:01:07.9]} 29. Bxc5 {[%clk 0:00:50.9]}
29... Qxc5 {[%clk 0:01:02.5]} 30. Qc4 {[%clk 0:00:25.3]} 30... Re7 {[%clk
0:00:44.1]} 31. e6 {[%clk 0:00:18.5]} 31... fxe6 {[%clk 0:00:18.7]} 32. Qxc5
{[%clk 0:00:18.5]} 32... Nxc5 {[%clk 0:00:20.3]} 33. Re5 {[%clk 0:00:17.5]}
33... Na4 {[%clk 0:00:20.5]} 34. Bb3 {[%clk 0:00:17.1]} 34... Nb6 {[%clk
0:00:20.6]} 35. Rxe6 {[%clk 0:00:18.6]} 35... Rxe6 {[%clk 0:00:20.5]} 36. Rxe6
{[%clk 0:00:20.5]} 36... Nd5 {[%clk 0:00:20.4]} 37. Bxd5 {[%clk 0:00:17.8]}
37... cxd5 {[%clk 0:00:21.5]} 38. Rb6 {[%clk 0:00:16.6]} 38... Rf7 {[%clk
0:00:22.2]} 39. Rd6 {[%clk 0:00:13.8]} 39... Rc7 {[%clk 0:00:23.1]} 40. c3
{[%clk 0:00:15]} 40... Rc5 {[%clk 0:00:24.2]} 41. Rb6 {[%clk 0:00:16]} 41... Rc7
{[%clk 0:00:24.8]} 42. Kf2 {[%clk 0:00:17.2]} 42... Kf7 {[%clk 0:00:25.3]} 43.
Ke3 {[%clk 0:00:18]} 43... Re7+ {[%clk 0:00:25.1]} 44. Kd3 {[%clk 0:00:12.9]}
44... h5 {[%clk 0:00:26.2]} 45. g3 {[%clk 0:00:12.9]} 45... g6 {[%clk
0:00:25.6]} 46. h4 {[%clk 0:00:13.7]} 46... Kg7 {[%clk 0:00:24.4]} 47. a4 {[%clk
0:00:15.2]} 47... Kh6 {[%clk 0:00:23.3]} 48. a5 {[%clk 0:00:15.3]} 48... Re1
{[%clk 0:00:24.2]} 49. Rxb7 {[%clk 0:00:15.9]} 49... Rg1 {[%clk 0:00:25.8]} 50.
Rb6 {[%clk 0:00:14.2]} 50... Rxg3+ {[%clk 0:00:27.2]} 51. Kd4 {[%clk 0:00:15.1]}
51... Rg4+ {[%clk 0:00:28.8]} 52. Kxd5 {[%clk 0:00:16.6]} 52... Rxh4 {[%clk
0:00:30.5]} 53. Rxa6 {[%clk 0:00:18.1]} 53... Ra4 {[%clk 0:00:31.4]} 54. b4
{[%clk 0:00:18.8]} 54... h4 {[%clk 0:00:32.3]} 55. Ra8 {[%clk 0:00:20.1]} 55...
Kh7 {[%clk 0:00:32.5]} 56. Ke4 {[%clk 0:00:18.2]} 56... Ra3 {[%clk 0:00:31.6]}
57. Rc8 {[%clk 0:00:15.2]} 57... h3 {[%clk 0:00:31.3]} 58. Kf3 {[%clk
0:00:16.6]} 58... Ra2 {[%clk 0:00:32.4]} 59. Rd8 {[%clk 0:00:17.2]} 59... h2
{[%clk 0:00:32.5]} 60. Rd1 {[%clk 0:00:17.3]} 60... Rc2 {[%clk 0:00:33.6]} 61.
Ra1 {[%clk 0:00:12.7]} 61... Rxc3+ {[%clk 0:00:23.2]} 62. Kg2 {[%clk 0:00:13.8]}
62... Rc2+ {[%clk 0:00:20.4]} 63. Kh1 {[%clk 0:00:15]} 63... g5 {[%clk
0:00:21.3]} 64. a6 {[%clk 0:00:14.5]} 64... g4 {[%clk 0:00:22]} 65. a7 {[%clk
0:00:15.9]} 1-0